Cogmind - Beta 13 *** ADVENTURER MODE // 2024.07.09 @ 02:44:53 Player: Cripple Result: Destroyed by S-10 Pest with Light Assault Rifle Performance ------------- Evolutions (0) 0 Regions Visited (2) 400 Robots Destroyed (27) 135 Value Destroyed (583) 583 Prototype IDs (2) 40 Alien Tech Used (0) 0 Bonus (0) 0 TOTAL SCORE: 1158 Bonus ------- None Cogmind --------- Core Integrity 0/250 Matter 179/300 Energy 250/250 System Corruption 1% Temperature Cool (0) Movement Flying (117) Ox1 Location -10/Mines Parts ------- > --- POWER (1) -------- Ion Engine > --- PROPULSION (2) --- Flight Unit Flight Unit > --- UTILITY (2) ------ Small Storage Unit > --- WEAPON (2) ------- Small Laser Assault Rifle > --- INVENTORY (8) ---- Ion Engine Ion Engine Peak State ------------ > --- POWER ------------ Ion Engine > --- PROPULSION ------- Aluminum Leg Aluminum Leg > --- UTILITY ---------- Small Storage Unit Sensor Array > --- WEAPON ----------- Small Laser Assault Rifle > --- INVENTORY -------- (None) [Rating: 7] Favorites ----------- Power Ion Engine Engine Ion Engine Propulsion Aluminum Leg Leg Aluminum Leg Flight Unit Flight Unit Utility Small Storage Unit Device Sensor Array Storage Small Storage Unit Weapon Small Laser Energy Gun Small Laser Energy Cannon Beam Cannon Ballistic Gun Assault Rifle Ballistic Cannon Light Cannon Launcher Grenade Launcher Build | -11 -10 -10 ------- Run | Yrd Mat Min Slots Evolved . | . . . Power . | . . . Propulsion . | . . . Utility . | . . . Weapon . | . . . Parts Attached 31 | 6 15 10 Power 10 | 1 7 2 Engine 10 | 1 7 2 Core . | . . . Reactor . | . . . Propulsion 6 | 2 2 2 Treads . | . . . Leg 4 | 2 2 . Wheel . | . . . Hover . | . . . Flight 2 | . . 2 Utility 2 | 1 1 . Device 1 | . 1 . Storage 1 | 1 . . Processor . | . . . Hackware . | . . . Protection . | . . . Artifact . | . . . Weapon 13 | 2 5 6 Energy Gun 4 | 1 1 2 Energy Cannon 1 | . 1 . Ballistic Gun 3 | 1 1 1 Ballistic Cannon 2 | . 1 1 Launcher 3 | . 1 2 Special Weapon . | . . . Impact Weapon . | . . . Slashing Weapon . | . . . Piercing Weapon . | . . . Special Melee Weapon . | . . . Unidentified Prototypes . | . . . Parts Lost 6 | . . 6 Power 1 | . . 1 Propulsion 2 | . . 2 Utility 1 | . . 1 Weapon 2 | . . 2 Highest Loss Streak 5 | . . 5 To Critical Strikes . | . . . Average Slot Usage (%) 92 | . 99 70 Engine 13 | . 14 13 Leg 24 | . 28 12 Device 11 | . 13 5 Storage 14 | . 14 14 Energy Gun 7 | . 7 9 Energy Cannon 4 | . 4 2 Ballistic Gun 7 | . 9 1 Ballistic Cannon 5 | . 5 4 Launcher 1 | . 1 1 Naked Turns . | . . . Heaviest Build 17 | 13 17 17 Greatest Support 20 | 20 20 20 Greatest Overweight (x) 4 | . . 4 Average Overweight (x) . | . . . Largest Inventory Capacity 8 | 8 8 8 Average Capacity 7 | 7 8 8 Most Carried 8 | 5 8 8 Average Carried 3 | . 3 6 Final Capacity 8 | 8 8 8 Final Carried 8 | . 8 2 Class Distribution -------------------- 100% | Mutant Dominant Class ---------------- Mutant | -10/Materials Mutant | -10/Mines Resources | -11 -10 -10 ----------- Run | Yrd Mat Min Matter Collected 645 | 236 313 96 Remotely . | . . . Salvage Created 741 | . 455 286 Parts 49 | . 26 23 Haulers Intercepted . | . . . Recyclers Shooed 1 | . . 1 Parts Field Recycled . | . . . Retrieved Matter . | . . . Parts Self-Destructed . | . . . Prevented . | . . . Kills | -11 -10 -10 ------- Run | Yrd Mat Min Combat Hostiles Destroyed 37 | . 11 26 Guns 10 | . 5 5 Cannons 6 | . 3 3 AOE 21 | . 3 18 Classes Destroyed 8 | . 5 3 Builder 1 | . . 1 Tunneler 1 | . 1 . Recycler 3 | . 1 2 Watcher 2 | . 2 . Swarmer 10 | . 3 7 Grunt 8 | . 8 . Demolisher 2 | . . 2 Assembled 17 | . . 17 Best Kill Streak 17 | . 4 17 Combat Bots Only 17 | . 3 17 Max Kills in Single Turn 4 | . 1 4 Gunslinging . | . . . Exploded 4 | . 1 4 Melee . | . . . Uniques/NPCs Destroyed . | . . . Combat | -11 -10 -10 -------- Run | Yrd Mat Min Hostile Shots Fired 102 | . 33 69 Missed 24 | . 12 12 Damage Taken 998 | . 203 795 Core 253 | . 24 229 Absorbed by Shields . | . . . Ignored by Resistances 286 | . 62 224 Core Remaining (%) 100 | 100 . . Volleys Fired 81 | . 30 51 Largest 2 | . 2 2 Hottest 95 | . 95 95 Shots Fired 119 | . 56 63 Gun 73 | . 36 37 Cannon 32 | . 16 16 Launcher 14 | . 4 10 Special . | . . . Kinetic 40 | . 29 11 Thermal 65 | . 23 42 Explosive 14 | . 4 10 Electromagnetic . | . . . Robot Hit Streak 10 | . 7 10 Robot Miss Streak 3 | . 3 3 Penetration Max . | . . . Secondary Targets 1 | . 1 . Max Gunslinging Chain 1 | . 1 . Shots Hit Robots 79 | . 35 44 Core Hits 76 | . 21 55 Critical Kills . | . . . Critical Parts Destroyed . | . . . Critical Strikes . | . . . Melee Attacks . | . . . Impact . | . . . Slashing . | . . . Piercing . | . . . Sneak Attacks . | . . . Combat Hostiles . | . . . Follow-up Attacks . | . . . Damage Inflicted 2257 | . 667 1590 Guns 506 | . 295 211 Cannons 288 | . 147 141 Explosions 1463 | . 225 1238 Melee . | . . . Ramming . | . . . Kinetic 370 | . 285 85 Thermal 424 | . 157 267 Explosive 1463 | . 225 1238 Electromagnetic . | . . . Impact . | . . . Slashing . | . . . Piercing . | . . . Highest Corruption 1 | . 1 1 Average Corruption 1 | . 1 1 Corruption Purged . | . . . Corruption Blocked . | . . . Effects 3 | . 1 2 Matter Fused 1 | . 1 . Data Loss (minor) 1 | . . 1 Misfires 1 | . . 1 Overload Shots . | . . . Overflow Damage 55 | . . 55 Projectiles . | . . . Explosions 55 | . . 55 Melee . | . . . Knockbacks 2 | . 2 . Impact . | . . . Kinetic 2 | . 2 . Secondary . | . . . Self-Inflicted Damage 11 | . . 11 Shots 2 | . . 2 Rammed . | . . . Targets Rammed . | . . . Kicked . | . . . Crushed . | . . . Highest Temperature 111 | . 111 99 Average Temperature 42 | . 43 42 Received Heat Transfer 121 | . 81 40 Siege Activations . | . . . Robots Corrupted . | . . . Combat Hostiles . | . . . Parts Fried . | . . . Impact Corruptions . | . . . Robots Melted . | . . . Combat Hostiles . | . . . Parts Melted . | . . . Heat Transferred 946 | . 348 598 Parts Sabotaged . | . . . Parts Stolen . | . . . Parts Stripped . | . . . Power Chain Reactions . | . . . Alert | -11 -10 -10 ------- Run | Yrd Mat Min Peak Influence 261 | . 233 261 Initial 53 | . . 53 Average 115 | . 105 175 Maximum Alert Level 1 | . 1 1 Low Security (%) 94 | 100 98 78 Level 1 5 | . 1 21 Level 2 . | . . . Level 3 . | . . . Level 4 . | . . . Level 5 . | . . . High Security . | . . . Max Security . | . . . Squads Dispatched 2 | . 2 . Investigation 2 | . 2 . Extermination . | . . . Reinforcement . | . . . Assault . | . . . Garrison . | . . . Intercept . | . . . Searches Triggered . | . . . Construction Impeded . | . . . Haulers Reinforced . | . . . Active Scanning Responses . | . . . Cargo Convoy Interrupts . | . . . Stealth | -11 -10 -10 --------- Run | Yrd Mat Min Distress Signals 1 | . 1 . Communications Jammed . | . . . Distress Signals . | . . . Times Spotted 43 | . 14 29 Peak Tracking Total 19 | . 3 19 Tactical Retreats 2 | . 1 1 Traps | -11 -10 -10 ------- Run | Yrd Mat Min Traps Triggered 1 | . 1 . Indirectly . | . . . Trap Hack Attempts . | . . . Triggered . | . . . Disarmed 6 | . 6 . Reprogrammed . | . . . Reused . | . . . Traps Extracted . | . . . Installed . | . . . Triggered . | . . . Machines | -11 -10 -10 ---------- Run | Yrd Mat Min Machines Disabled 3 | . 2 1 Max in Single Turn 1 | . 1 1 Machines Repaired . | . . . Machines Dismantled . | . . . Machines Sabotaged . | . . . Overloaded Fab Kills . | . . . Hacking | -11 -10 -10 --------- Run | Yrd Mat Min Machines Accessed 6 | . 6 . Terminals 4 | . 4 . Fabricators . | . . . Repair Stations . | . . . Recycling Units 2 | . 2 . Scanalyzers . | . . . Garrison Access . | . . . Total Hacks 21 | . 21 . Successful 18 | . 18 . Failed 3 | . 3 . Catastrophic . | . . . Database Lockouts . | . . . Manual . | . . . Terminals 8 | . 8 . Fabricators . | . . . Repair Stations . | . . . Recycling Units 13 | . 13 . Scanalyzers . | . . . Garrison Access . | . . . Terminal Hacks 6 | . 6 . Record 2 | . 2 . Robot Analysis 1 | . 1 . Prototype ID Bank 1 | . 1 . Disarm Traps 1 | . 1 . Investigation Status 1 | . 1 . Fabricator Hacks . | . . . Repair Station Hacks . | . . . Recycling Unit Hacks 12 | . 12 . Recycle Component 6 | . 6 . Process 3 | . 3 . Report Inventory 2 | . 2 . Retrieve Matter 1 | . 1 . Scanalyzer . | . . . Garrison Access Hacks . | . . . Unauthorized Hacks . | . . . Terminals . | . . . Fabricators . | . . . Repair Stations . | . . . Recycling Units . | . . . Scanalyzers . | . . . Garrison Access . | . . . Data Cores Recovered . | . . . Used . | . . . Hacking Detections 4 | . 4 . Full Trace Events 2 | . 2 . Feedback Events 1 | . 1 . Corruption 1 | . 1 . Feedback Blocked . | . . . Robot Schematics Acquired . | . . . Robots Built . | . . . Authchips . | . . . Time . | . . . Total Robot Build Rating . | . . . Part Schematics Acquired . | . . . Parts Built . | . . . Authchips . | . . . Time . | . . . Total Part Build Rating . | . . . Parts Repaired . | . . . Time . | . . . Parts Recycled 6 | . 6 . Recycled Matter 259 | . 259 . Retrieved Matter 34 | . 34 . Retrieved Components . | . . . Parts Scanalyzed . | . . . Part Schematics Acquired . | . . . Parts Damaged . | . . . Bothacking | -11 -10 -10 ------------ Run | Yrd Mat Min Used RIF Installer . | . . . Robots Hacked . | . . . Non-combat . | . . . Combat . | . . . Robot Hacks Applied . | . . . Relay Couplers Released . | . . . Fabnet Peak Effective % . | . . . Robots Rewired . | . . . Allies Hacked . | . . . Hacks Repelled . | . . . Allies | -11 -10 -10 -------- Run | Yrd Mat Min Total Allies . | . . . Largest Group . | . . . Highest-Rated Group . | . . . Highest-Rated Ally . | . . . Total Orders . | . . . Ally Attacks . | . . . Total Damage . | . . . Kills . | . . . Allies Corrupted . | . . . Allies Melted . | . . . Intel | -11 -10 -10 ------- Run | Yrd Mat Min Robot Analysis Total 1 | . 1 . Derelict Logs Recovered . | . . . Drone Launches . | . . . Drone Recoveries . | . . . Exploration | -11 -10 -10 ------------- Run | Yrd Mat Min Turns Passed 1040 | 57 750 233 Spaces Moved 610 | 47 489 74 Core 36 | 15 . 21 Treads . | . . . Legs 566 | 32 489 45 Wheels . | . . . Hover . | . . . Flight 8 | . . 8 Fastest Speed 50 | 50 120 100 Average Speed 120 | 97 120 140 Slowest Speed 250 | 120 120 250 Overloaded Moves . | . . . Propulsion Burnouts . | . . . Robots Hopped . | . . . Cave-ins Triggered . | . . . Exploration Rate (%) 34 | 4 79 19 Regions Visited 2 Branch Regions 1 Pre-discovered Areas . | . . . Known Exits Taken . | . . . Unknown Exits Taken 2 | 1 1 . Scrap Searched . | . . . Spaces Dug . | . . . Terrain Destroyed 59 | . 10 49 Melee . | . . . Projectile . | . . . AOE 59 | . 10 49 Terrain Rammed . | . . . Walls Destroyed . | . . . Machines Disabled . | . . . Actions | -11 -10 -10 --------- Run | Yrd Mat Min Total 787 | 58 589 140 Wait 42 | . 41 1 Move 608 | 46 488 74 Hop . | . . . Pick Up 23 | 6 15 2 Fast Attach . | . . . Attach 13 | 6 1 6 Detach . | . . . Swap 18 | . 14 4 Drop 2 | . . 2 Fire 81 | . 30 51 Melee . | . . . Ram . | . . . Kick . | . . . Crush . | . . . Escape Stasis . | . . . Rewire . | . . . Trap . | . . . Miscellaneous . | . . . Route ------- -11/Scrapyard -10/Materials (discovered 4 exits: [*Mat x2] / [*Min x2]) -10/Mines History --------- Turn | Location | Event 4 | -11/Scrapyard | Discovered new exit (range 16) 58 | -11/Scrapyard | Entered Materials 318 | -10/Materials | Build established: Mutant 374 | -10/Materials | Discovered new exit (range 15) 500 | -10/Materials | Discovered new exit (range 14) 628 | -10/Materials | Discovered new exit (range 3) 780 | -10/Materials | Discovered new exit (range 5) 808 | -10/Materials | Entered Mines 835 | -10/Mines | Assembled infested the area 840 | -10/Mines | Assisted by a Guerilla fighting off Assembled 887 | -10/Mines | Destroyed 17 combat bots 922 | -10/Mines | Core integrity fell below 50% 950 | -10/Mines | Lost 5 parts (2n1u2w) 961 | -10/Mines | Core integrity fell below 20% 1041 | -10/Mines | Destroyed by S-10 Pest with Light Assault Rifle Last Messages --------------- U-05 Engineer builds a Wall. Acquired Flight Unit. The unstable cave ceiling collapses. K-01 Serf collects debris. U-05 Engineer lays Concrete. K-01 Serf collects debris. U-05 Engineer lays Concrete. U-05 Engineer builds a Wall. Acquired Flight Unit. K-01 Serf collects debris. Dropped Ion Engine. Dropped Lgt. Ion Engine. U-05 Engineer builds a Wall. K-01 Serf collects debris. Acquired 4 matter. U-05 Engineer lays Concrete. K-01 Serf collects debris. U-05 Engineer builds a Wall. K-01 Serf collects debris. S-10 Pest destroyed. Map ----- +----------------------------------------------------+ | ?????????????????????????????????????????????????? | | ?????????????????????????????????????????????????? | | ?????????????????????????????????????????????????? | | ?????????????????????????????????????????????????? | | ?????????????????????????????????????????????????? | | ?????????????????????????????????????????????????? | | ?????????????????????????????????????????????????? | | ?????????????????????????????????????????????????? | | ?????????????????????????????????????????????????? | | ?????????????????????????????????????????????????? | | ?????????????????????????????????????????????????? | | ????????????????????? ??????????????????????????? | | ??????????????????## s ?????????????????????????? | | ?????????????????## %* ?????????????????????????? | | ?????????????????# [ ?????????????????????????? | | ?????????????????? ?????????????????????????? | | ??????????????????# ?????????????????????????? | | ??????????????##### ????????????????????????? | | ??????????????? ??????###???????????????? | | ???????????????? ?????# ##??????????????? | | ?????????????????# ????? #??????????????? | | ?????????????????# ????? #??????????????? | | ?????????????????# ##?## #??????????????? | | ??????????????????? ### #??????????????? | | ?????????????????????# #??????????????? | | ??????????????????????# @ ##?????????????? | | ??????????????????????## < ####??????????? | | ???????????????????????# #??????????? | | ???????????????????????# #??????????? | | ???????????????????????## % ## #??????????? | | ????????????????????????## k ##???##??????????? | | ?????????????????????????##[ *%##????????????????? | | ??????????????????????????##*% ##??#####?????????? | | ???????????????????????????#*= ### ##????????? | | ??????????????????????????## ##???????? | | ?????????????????????????## = % #???????? | | ?????????????????????????# == #???????? | | ?????????????????????????## [## ## =##???????? | | ?????????????????????????# # ##??## #????????? | | ?????????????????########## # ###?????#????????? | | ?????????????? %=# # ##??????????????? | | ?????????????????########= # # #######?????????? | | ????????????????????????# ## #?????????? | | ????????????????????????# ## # #?????????? | | ????????????????????????# ## #?????????? | | ????????????????????????## ] #?????????? | | ?????????????????????????# #### ==* #?????????? | | ?????????????????????????## # "" [=#?????????? | | ??????????????????????????### ## "" [* #?????????? | | ????????????????????????????#### "" * #?????????? | +----------------------------------------------------+ Best States ------------- Heat Dissipation 25 Energy Generation 10 Energy Capacity 250 Matter Stores 300 Matter Capacity 300 Sight Range 16 Robot Scan Range 14 Terrain Scan Density 10 Resistance: KI 20 Resistance: TH 20 Resistance: EX 20 Resistance: EM 20 Resistance: I 20 Resistance: S 20 Resistance: P 20 Evasion (%) 55 Offensive Hacking 10 Item Schematics ----------------- None Robot Schematics ------------------ None Fabricated ------------ Nothing Alien Tech Used ----------------- None Achievements -------------- Exterminator Maybe Next Time I'll Detach My Launcher Challenges ------------ None Game ------ Seed ScrapWeaponsScrap Manual? 0 Play Time 00:12:54 Cumulative 1.1 hours Start 2024.07.09 @ 02:32:20 End 2024.07.09 @ 02:44:53 Sessions 1 Manual Loads 0 Difficulty Adventurer Special Mode None Game No. 3 Rogue 0 Adventurer 3 Explorer 0 Win Type - Total 0 Types 0/0/0/0/0/0/0/0/0 Lore% 2 Gallery% 4 Achievement% 4 Wizard Run 0 Options --------- Layout 1 ASCII 0 Keyboard 0 Movement Mouse Keybinds 0 Fullscreen 1 Font 24/Smallcaps Map View 50x35 Zoom Use 0% Tactical HUD 0 Map Filters NONE Filters NONE Steam 1 RUN: da4e3805-1535-482a-8c28-4a696d82726b